[Event "Live Chess"]
[Site "Chess.com"]
[Date "2024.06.02"]
[Round "-"]
[White "ameetghasi100"]
[Black "Brooms1989"]
[Result "1-0"]
[WhiteElo "2792"]
[BlackElo "1156"]
[TimeControl "300"]
[EndTime "1:53:25 PDT"]
[Termination "ameetghasi100 won by resignation"]

1. c4 {[%clk 0:04:58.8]} 1... Nf6 {[%clk 0:04:56.7]} 2. d4 {[%clk 0:04:58.7]}
2... g6 {[%clk 0:04:55.4]} 3. Nf3 {[%clk 0:04:58.6]} 3... Bg7 {[%clk 0:04:54.5]}
4. e3 {[%clk 0:04:58.5]} 4... O-O {[%clk 0:04:53.1]} 5. Nc3 {[%clk 0:04:58.4]}
5... d6 {[%clk 0:04:51.5]} 6. h3 {[%clk 0:04:58.3]} 6... Nbd7 {[%clk 0:04:48.6]}
7. Be2 {[%clk 0:04:58.2]} 7... e5 {[%clk 0:04:47.2]} 8. O-O {[%clk 0:04:58.1]}
8... exd4 {[%clk 0:04:45.9]} 9. b3 {[%clk 0:04:58]} 9... dxc3 {[%clk 0:04:44.7]}
10. Nd4 {[%clk 0:04:57.9]} 10... c5 {[%clk 0:04:42.9]} 11. Nb5 {[%clk
0:04:54.4]} 11... Ne8 {[%clk 0:04:28.4]} 12. Qc2 {[%clk 0:04:50]} 12... a6
{[%clk 0:04:26.6]} 13. Nxc3 {[%clk 0:04:48.7]} 13... Bxc3 {[%clk 0:04:21.1]} 14.
Qxc3 {[%clk 0:04:48.6]} 14... Qf6 {[%clk 0:04:18.5]} 15. Qc2 {[%clk 0:04:47.5]}
15... Qxa1 {[%clk 0:04:12.5]} 16. Bb2 {[%clk 0:04:46.6]} 16... Qxa2 {[%clk
0:04:11.3]} 17. Ra1 {[%clk 0:04:45.7]} 17... Qxa1+ {[%clk 0:04:10.3]} 18. Bxa1
{[%clk 0:04:45.6]} 18... Ne5 {[%clk 0:04:08.7]} 19. f4 {[%clk 0:04:44.3]} 19...
Nc6 {[%clk 0:04:04.1]} 20. g4 {[%clk 0:04:41.4]} 20... Nf6 {[%clk 0:03:58]} 21.
Bxf6 {[%clk 0:04:39.5]} 21... b5 {[%clk 0:03:53.2]} 22. Bf3 {[%clk 0:04:37.7]}
22... Bd7 {[%clk 0:03:50.5]} 23. Qf2 {[%clk 0:04:34.8]} 23... Rac8 {[%clk
0:03:43.1]} 24. Qh4 {[%clk 0:04:32.4]} 24... Nd8 {[%clk 0:03:29.3]} 25. Qh6
{[%clk 0:04:30.3]} 25... Ne6 {[%clk 0:03:28.1]} 26. f5 {[%clk 0:04:29.8]} 1-0

[Event "Live Chess"]
[Site "Chess.com"]
[Date "2024.06.02"]
[Round "-"]
[White "StoreySniper"]
[Black "SergiiA"]
[Result "1-0"]
[WhiteElo "2512"]
[BlackElo "1537"]
[TimeControl "300"]
[EndTime "1:53:32 PDT"]
[Termination "StoreySniper won by resignation"]

1. e4 {[%clk 0:04:54.7]} 1... c5 {[%clk 0:04:31.7]} 2. Nf3 {[%clk 0:04:52.6]}
2... a6 {[%clk 0:04:31.1]} 3. d4 {[%clk 0:04:51.3]} 3... cxd4 {[%clk 0:04:30]}
4. c3 {[%clk 0:04:50.5]} 4... dxc3 {[%clk 0:04:27.4]} 5. Nxc3 {[%clk 0:04:49.3]}
5... Nc6 {[%clk 0:04:27]} 6. Bc4 {[%clk 0:04:48.2]} 6... e6 {[%clk 0:04:25.6]}
7. O-O {[%clk 0:04:47.1]} 7... Bb4 {[%clk 0:04:23.8]} 8. Qe2 {[%clk 0:04:45.4]}
8... Nge7 {[%clk 0:04:18.9]} 9. Rd1 {[%clk 0:04:44]} 9... O-O {[%clk 0:04:17]}
10. Bg5 {[%clk 0:04:38.7]} 10... b5 {[%clk 0:04:06.5]} 11. Bb3 {[%clk
0:04:33.5]} 11... Qc7 {[%clk 0:04:01.6]} 12. Rac1 {[%clk 0:04:31.1]} 12... Bb7
{[%clk 0:03:56.6]} 13. Nd5 {[%clk 0:04:27.1]} 13... Qe5 {[%clk 0:03:31.7]} 14.
Nxb4 {[%clk 0:04:19]} 1-0

[Event "Live Chess"]
[Site "Chess.com"]
[Date "2024.06.02"]
[Round "-"]
[White "ACM42"]
[Black "CheckThis4"]
[Result "0-1"]
[WhiteElo "2167"]
[BlackElo "2696"]
[TimeControl "300"]
[EndTime "1:53:53 PDT"]
[Termination "CheckThis4 won on time"]

1. e4 {[%clk 0:04:57.5]} 1... c5 {[%clk 0:04:56.9]} 2. Nf3 {[%clk 0:04:54.4]}
2... Nc6 {[%clk 0:04:55.8]} 3. d4 {[%clk 0:04:53.3]} 3... cxd4 {[%clk 0:04:55]}
4. Nxd4 {[%clk 0:04:52.7]} 4... g6 {[%clk 0:04:54.3]} 5. Be3 {[%clk 0:04:51.2]}
5... Bg7 {[%clk 0:04:52.1]} 6. Nc3 {[%clk 0:04:47.5]} 6... Nf6 {[%clk
0:04:50.8]} 7. Nxc6 {[%clk 0:04:44.7]} 7... bxc6 {[%clk 0:04:49.5]} 8. e5 {[%clk
0:04:44]} 8... Nd5 {[%clk 0:04:46.3]} 9. Nxd5 {[%clk 0:04:42.7]} 9... cxd5
{[%clk 0:04:45.9]} 10. Qxd5 {[%clk 0:04:42]} 10... Rb8 {[%clk 0:04:44.7]} 11.
Bd4 {[%clk 0:04:41.2]} 11... O-O {[%clk 0:04:27.4]} 12. O-O-O {[%clk 0:04:33.7]}
12... Bb7 {[%clk 0:04:13.5]} 13. Qc5 {[%clk 0:04:21.1]} 13... Be4 {[%clk
0:03:48]} 14. Bd3 {[%clk 0:04:15.1]} 14... Bxg2 {[%clk 0:03:43.8]} 15. Rhg1
{[%clk 0:04:07.8]} 15... Bf3 {[%clk 0:03:42.1]} 16. Rde1 {[%clk 0:04:04.8]}
16... d6 {[%clk 0:03:23.1]} 17. Qa3 {[%clk 0:03:40.8]} 17... Re8 {[%clk
0:02:48]} 18. Bxg6 {[%clk 0:03:32.1]} 18... hxg6 {[%clk 0:02:37.9]} 19. Qxf3
{[%clk 0:03:31.2]} 19... dxe5 {[%clk 0:02:30.8]} 20. Bxe5 {[%clk 0:03:21.3]}
20... Bxe5 {[%clk 0:02:24.8]} 21. Rxe5 {[%clk 0:03:15.8]} 21... Qd4 {[%clk
0:02:22.5]} 22. Qc3 {[%clk 0:02:52.9]} 22... Qxf2 {[%clk 0:02:02.1]} 23. Reg5
{[%clk 0:02:06.3]} 23... Qf6 {[%clk 0:01:43.9]} 24. h4 {[%clk 0:01:20.8]} 24...
Qxc3 {[%clk 0:01:31.5]} 25. bxc3 {[%clk 0:01:20.7]} 25... Kg7 {[%clk 0:01:26.7]}
26. h5 {[%clk 0:01:19]} 26... Rb6 {[%clk 0:01:25.3]} 27. hxg6 {[%clk 0:01:15.3]}
27... Rxg6 {[%clk 0:01:17.7]} 28. Rxg6+ {[%clk 0:01:09.6]} 28... fxg6 {[%clk
0:01:17.6]} 29. Kd2 {[%clk 0:01:06.3]} 29... e5 {[%clk 0:01:15.1]} 30. Ke3
{[%clk 0:01:04.9]} 30... Rc8 {[%clk 0:01:12.7]} 31. Kd3 {[%clk 0:01:03.1]} 31...
Kf6 {[%clk 0:01:08.2]} 32. c4 {[%clk 0:00:59.5]} 32... Rd8+ {[%clk 0:01:05.7]}
33. Ke3 {[%clk 0:00:54.1]} 33... Rd4 {[%clk 0:01:03.8]} 34. Rf1+ {[%clk
0:00:52.3]} 34... Ke6 {[%clk 0:01:02.5]} 35. Rg1 {[%clk 0:00:49.7]} 35... Kf5
{[%clk 0:00:57.9]} 36. Rf1+ {[%clk 0:00:48]} 36... Rf4 {[%clk 0:00:56.3]} 37.
Rb1 {[%clk 0:00:26.6]} 37... Rxc4 {[%clk 0:00:53.8]} 38. Rb7 {[%clk 0:00:25.7]}
38... a5 {[%clk 0:00:48.9]} 39. Ra7 {[%clk 0:00:23.8]} 39... Ra4 {[%clk
0:00:45.8]} 40. c4 {[%clk 0:00:19.5]} 40... Rxa2 {[%clk 0:00:41.8]} 41. c5
{[%clk 0:00:18.9]} 41... a4 {[%clk 0:00:38]} 42. c6 {[%clk 0:00:17.5]} 42... Rc2
{[%clk 0:00:36.5]} 43. Rxa4 {[%clk 0:00:12.5]} 43... Rxc6 {[%clk 0:00:35]} 44.
Ra8 {[%clk 0:00:11.4]} 44... Rc3+ {[%clk 0:00:33.8]} 45. Kf2 {[%clk 0:00:10.1]}
45... g5 {[%clk 0:00:32.6]} 46. Rf8+ {[%clk 0:00:08.9]} 46... Ke4 {[%clk
0:00:29.7]} 47. Kg2 {[%clk 0:00:08]} 47... g4 {[%clk 0:00:28.4]} 48. Rg8 {[%clk
0:00:06.8]} 48... g3 {[%clk 0:00:26.9]} 49. Rg4+ {[%clk 0:00:05.9]} 49... Kf5
{[%clk 0:00:25]} 50. Ra4 {[%clk 0:00:05]} 50... e4 {[%clk 0:00:22.6]} 51. Ra8
{[%clk 0:00:03.9]} 51... Kf4 {[%clk 0:00:21.3]} 52. Rf8+ {[%clk 0:00:02.9]}
52... Ke3 {[%clk 0:00:20]} 53. Kxg3 {[%clk 0:00:02.3]} 53... Ke2+ {[%clk
0:00:18.6]} 54. Kg2 {[%clk 0:00:02.2]} 54... e3 {[%clk 0:00:17.5]} 55. Re8
{[%clk 0:00:01.6]} 55... Rc2 {[%clk 0:00:15.6]} 0-1

[Event "Live Chess"]
[Site "Chess.com"]
[Date "2024.06.02"]
[Round "-"]
[White "KeithArkell"]
[Black "DavrosLight"]
[Result "1-0"]
[WhiteElo "2400"]
[BlackElo "787"]
[TimeControl "300"]
[EndTime "1:54:05 PDT"]
[Termination "KeithArkell won by resignation"]

1. d4 {[%clk 0:04:57.8]} 1... d5 {[%clk 0:04:57.4]} 2. Nf3 {[%clk 0:04:56.5]}
2... Nf6 {[%clk 0:04:53.8]} 3. c4 {[%clk 0:04:52.2]} 3... e6 {[%clk 0:04:50.1]}
4. cxd5 {[%clk 0:04:51.3]} 4... Nxd5 {[%clk 0:04:47.1]} 5. Nc3 {[%clk
0:04:50.5]} 5... Bb4 {[%clk 0:04:45.2]} 6. Bd2 {[%clk 0:04:49.6]} 6... Bxc3
{[%clk 0:04:43.4]} 7. bxc3 {[%clk 0:04:48.7]} 7... O-O {[%clk 0:04:42.1]} 8. e4
{[%clk 0:04:48.1]} 8... Ne7 {[%clk 0:04:36.7]} 9. Bd3 {[%clk 0:04:46.3]} 9...
Nbc6 {[%clk 0:04:32.9]} 10. e5 {[%clk 0:04:45.5]} 10... Nd5 {[%clk 0:04:30.3]}
11. Bxh7+ {[%clk 0:04:44.2]} 11... Kh8 {[%clk 0:04:21.9]} 12. Ng5 {[%clk
0:04:43.1]} 12... g6 {[%clk 0:04:05.3]} 13. h4 {[%clk 0:04:39.6]} 13... Nf6
{[%clk 0:03:57.4]} 14. h5 {[%clk 0:04:37.5]} 14... gxh5 {[%clk 0:03:50.4]} 15.
Rxh5 {[%clk 0:04:35.6]} 15... Nxh5 {[%clk 0:03:48.4]} 16. Qxh5 {[%clk
0:04:34.4]} 16... Qxg5 {[%clk 0:03:33.6]} 17. Bxg5 {[%clk 0:04:31.6]} 1-0

[Event "Live Chess"]
[Site "Chess.com"]
[Date "2024.06.02"]
[Round "-"]
[White "NAZRIZ1977"]
[Black "MaksymYurii"]
[Result "1-0"]
[WhiteElo "2124"]
[BlackElo "1001"]
[TimeControl "300"]
[EndTime "1:54:30 PDT"]
[Termination "NAZRIZ1977 won by checkmate"]

1. c4 {[%clk 0:04:54.2]} 1... e5 {[%clk 0:04:58.4]} 2. g3 {[%clk 0:04:53.5]}
2... Nc6 {[%clk 0:04:57.7]} 3. Bg2 {[%clk 0:04:52.8]} 3... Bc5 {[%clk
0:04:53.7]} 4. Nc3 {[%clk 0:04:50.9]} 4... Qf6 {[%clk 0:04:51.9]} 5. e3 {[%clk
0:04:49.8]} 5... Nh6 {[%clk 0:04:44.4]} 6. Nge2 {[%clk 0:04:48.3]} 6... Ng4
{[%clk 0:04:42.5]} 7. O-O {[%clk 0:04:46]} 7... Qh6 {[%clk 0:04:33.4]} 8. h3
{[%clk 0:04:43.9]} 8... Nf6 {[%clk 0:04:23.5]} 9. d4 {[%clk 0:04:41.9]} 9...
exd4 {[%clk 0:04:18.3]} 10. exd4 {[%clk 0:04:40.9]} 10... Bd6 {[%clk 0:04:11.4]}
11. Bxh6 {[%clk 0:04:39.6]} 11... gxh6 {[%clk 0:04:07.7]} 12. d5 {[%clk
0:04:37.2]} 12... Ne5 {[%clk 0:04:03.4]} 13. b3 {[%clk 0:04:36.1]} 13... h5
{[%clk 0:03:53.3]} 14. Nd4 {[%clk 0:04:33.6]} 14... h4 {[%clk 0:03:43.4]} 15. g4
{[%clk 0:04:32.3]} 15... Nfxg4 {[%clk 0:03:38.4]} 16. hxg4 {[%clk 0:04:30.3]}
16... Rg8 {[%clk 0:03:36.6]} 17. Re1 {[%clk 0:04:26.3]} 17... Kd8 {[%clk
0:03:29.1]} 18. f3 {[%clk 0:04:23.5]} 18... c6 {[%clk 0:03:19.7]} 19. Nf5 {[%clk
0:04:21.2]} 19... Bc5+ {[%clk 0:03:14]} 20. Kh2 {[%clk 0:04:20.2]} 20... d6
{[%clk 0:03:03.8]} 21. dxc6 {[%clk 0:04:17.6]} 21... bxc6 {[%clk 0:03:01.4]} 22.
Rxe5 {[%clk 0:04:16.5]} 22... Kc7 {[%clk 0:02:54]} 23. Rxc5 {[%clk 0:04:14.9]}
23... dxc5 {[%clk 0:02:52.3]} 24. Qd6+ {[%clk 0:04:13.9]} 24... Kb6 {[%clk
0:02:49.4]} 25. Na4+ {[%clk 0:04:12.8]} 25... Kb7 {[%clk 0:02:47.1]} 26. Nxc5+
{[%clk 0:04:11.3]} 26... Kb6 {[%clk 0:02:45.7]} 27. Na4+ {[%clk 0:04:10.7]}
27... Kb7 {[%clk 0:02:44.5]} 28. Ne7 {[%clk 0:04:09.1]} 28... Re8 {[%clk
0:02:28.8]} 29. Qxc6+ {[%clk 0:04:07.4]} 29... Kb8 {[%clk 0:02:23.9]} 30. Qxe8
{[%clk 0:04:05]} 30... Kb7 {[%clk 0:02:20.6]} 31. Nc5+ {[%clk 0:04:03.8]} 31...
Kb6 {[%clk 0:02:18.7]} 32. Qc6+ {[%clk 0:04:01.9]} 32... Ka5 {[%clk 0:02:17.1]}
33. Qb5# {[%clk 0:04:00.7]} 1-0

[Event "Live Chess"]
[Site "Chess.com"]
[Date "2024.06.02"]
[Round "-"]
[White "AndyJWise"]
[Black "jellhhggffhjjjjjj"]
[Result "1/2-1/2"]
[WhiteElo "1036"]
[BlackElo "436"]
[TimeControl "300"]
[EndTime "1:54:35 PDT"]
[Termination "Game drawn - insufficient material"]

1. d4 {[%clk 0:04:57.3]} 1... e5 {[%clk 0:04:58.3]} 2. dxe5 {[%clk 0:04:56]}
2... Nc6 {[%clk 0:04:57]} 3. Nf3 {[%clk 0:04:55.1]} 3... d6 {[%clk 0:04:51.1]}
4. Bg5 {[%clk 0:04:49]} 4... f6 {[%clk 0:04:45.3]} 5. exf6 {[%clk 0:04:46.7]}
5... Nxf6 {[%clk 0:04:44]} 6. e4 {[%clk 0:04:39.9]} 6... h6 {[%clk 0:04:41.7]}
7. Bh4 {[%clk 0:04:38.1]} 7... g5 {[%clk 0:04:40.4]} 8. Nxg5 {[%clk 0:04:27.4]}
8... hxg5 {[%clk 0:04:35.2]} 9. Bxg5 {[%clk 0:04:26.4]} 9... Be7 {[%clk
0:04:33.8]} 10. Bb5 {[%clk 0:04:19.6]} 10... Bd7 {[%clk 0:04:31]} 11. Nc3 {[%clk
0:04:17.9]} 11... a6 {[%clk 0:04:19.6]} 12. Ba4 {[%clk 0:04:12.9]} 12... Ne5
{[%clk 0:04:15.1]} 13. Bxd7+ {[%clk 0:04:08.7]} 13... Qxd7 {[%clk 0:04:10.5]}
14. Bxf6 {[%clk 0:04:01.9]} 14... Bxf6 {[%clk 0:04:08.5]} 15. Nd5 {[%clk
0:03:59.9]} 15... Bg7 {[%clk 0:03:58.1]} 16. Qe2 {[%clk 0:03:42.8]} 16... O-O-O
{[%clk 0:03:48.4]} 17. O-O-O {[%clk 0:03:41.6]} 17... Nc6 {[%clk 0:03:38]} 18.
h4 {[%clk 0:03:26.9]} 18... Nd4 {[%clk 0:03:25]} 19. Qc4 {[%clk 0:03:12]} 19...
Qb5 {[%clk 0:03:09.1]} 20. Qxb5 {[%clk 0:03:06.2]} 20... Nxb5 {[%clk 0:03:07.4]}
21. Kb1 {[%clk 0:03:02.3]} 21... Rhe8 {[%clk 0:03:02.6]} 22. f3 {[%clk
0:02:59.9]} 22... c6 {[%clk 0:02:53.2]} 23. Nb6+ {[%clk 0:02:53.2]} 23... Kc7
{[%clk 0:02:48.7]} 24. Nc4 {[%clk 0:02:50]} 24... d5 {[%clk 0:02:43.6]} 25. exd5
{[%clk 0:02:48.6]} 25... Rxd5 {[%clk 0:02:39]} 26. Rxd5 {[%clk 0:02:46.6]} 26...
cxd5 {[%clk 0:02:37.9]} 27. Na5 {[%clk 0:02:27]} 27... Kb6 {[%clk 0:02:23.6]}
28. Nb3 {[%clk 0:02:23]} 28... Re2 {[%clk 0:02:17.2]} 29. g4 {[%clk 0:02:19.1]}
29... Rf2 {[%clk 0:02:14.9]} 30. h5 {[%clk 0:02:15.9]} 30... Rxf3 {[%clk
0:02:12.9]} 31. h6 {[%clk 0:02:15.1]} 31... Be5 {[%clk 0:02:08.4]} 32. h7 {[%clk
0:02:07.6]} 32... Rg3 {[%clk 0:02:05.3]} 33. h8=Q {[%clk 0:02:05.5]} 33... Bxh8
{[%clk 0:02:04]} 34. Rxh8 {[%clk 0:02:04.1]} 34... Rxg4 {[%clk 0:02:02.9]} 35.
Rh1 {[%clk 0:02:00.8]} 35... d4 {[%clk 0:01:59.3]} 36. a3 {[%clk 0:01:58.7]}
36... Re4 {[%clk 0:01:51.6]} 37. Nd2 {[%clk 0:01:53.1]} 37... Re2 {[%clk
0:01:49.6]} 38. Nc4+ {[%clk 0:01:48.8]} 38... Ka7 {[%clk 0:01:42.9]} 39. a4
{[%clk 0:01:42.5]} 39... Nc7 {[%clk 0:01:28.9]} 40. b3 {[%clk 0:01:37.3]} 40...
b5 {[%clk 0:01:27.7]} 41. axb5 {[%clk 0:01:35.3]} 41... Nxb5 {[%clk 0:01:26.5]}
42. Rh7+ {[%clk 0:01:26.5]} 42... Kb8 {[%clk 0:01:21.2]} 43. Rh6 {[%clk
0:01:12.9]} 43... Nc3+ {[%clk 0:01:18.1]} 44. Kb2 {[%clk 0:01:05.8]} 44... Re1
{[%clk 0:01:13.3]} 45. Na3 {[%clk 0:00:50.7]} 45... Ka7 {[%clk 0:01:10.5]} 46.
Rd6 {[%clk 0:00:47.4]} 46... Re4 {[%clk 0:00:50.3]} 47. Nb1 {[%clk 0:00:36.6]}
47... Nxb1 {[%clk 0:00:48]} 48. Kxb1 {[%clk 0:00:34.9]} 48... Re1+ {[%clk
0:00:45.8]} 49. Kb2 {[%clk 0:00:33.3]} 49... Re4 {[%clk 0:00:43.9]} 50. c3
{[%clk 0:00:23.8]} 50... Re2+ {[%clk 0:00:40.7]} 51. Ka3 {[%clk 0:00:20]} 51...
dxc3 {[%clk 0:00:39.5]} 52. Rc6 {[%clk 0:00:18.1]} 52... Re3 {[%clk 0:00:34.6]}
53. Kb4 {[%clk 0:00:16.2]} 53... Kb7 {[%clk 0:00:28.1]} 54. Rxc3 {[%clk
0:00:13.7]} 54... Rxc3 {[%clk 0:00:27]} 55. Kxc3 {[%clk 0:00:12.9]} 55... Kb6
{[%clk 0:00:26.3]} 56. Kb4 {[%clk 0:00:11.6]} 56... a5+ {[%clk 0:00:25.5]} 57.
Kc4 {[%clk 0:00:10.7]} 57... Kc6 {[%clk 0:00:22.5]} 58. b4 {[%clk 0:00:09.3]}
58... axb4 {[%clk 0:00:19.9]} 59. Kxb4 {[%clk 0:00:08.4]} 1/2-1/2

[Event "Live Chess"]
[Site "Chess.com"]
[Date "2024.06.02"]
[Round "-"]
[White "LL220284LL"]
[Black "silunn"]
[Result "1-0"]
[WhiteElo "2502"]
[BlackElo "2200"]
[TimeControl "300"]
[EndTime "1:54:44 PDT"]
[Termination "LL220284LL won by resignation"]

1. e3 {[%clk 0:04:57.9]} 1... e6 {[%clk 0:04:59.9]} 2. c4 {[%clk 0:04:56.5]}
2... d5 {[%clk 0:04:59.4]} 3. g3 {[%clk 0:04:55.8]} 3... Nf6 {[%clk 0:04:58.7]}
4. Bg2 {[%clk 0:04:54.7]} 4... Be7 {[%clk 0:04:58.2]} 5. Nf3 {[%clk 0:04:52.9]}
5... O-O {[%clk 0:04:57.7]} 6. b3 {[%clk 0:04:50.2]} 6... dxc4 {[%clk
0:04:53.9]} 7. bxc4 {[%clk 0:04:47.3]} 7... Nc6 {[%clk 0:04:51.2]} 8. Bb2 {[%clk
0:04:38.8]} 8... Qd3 {[%clk 0:04:45.3]} 9. Qb3 {[%clk 0:04:35]} 9... Nb4 {[%clk
0:04:40.5]} 10. Na3 {[%clk 0:04:20.4]} 10... Qxb3 {[%clk 0:04:35.9]} 11. axb3
{[%clk 0:04:19.2]} 11... Nd3+ {[%clk 0:04:35.1]} 12. Ke2 {[%clk 0:04:16.2]}
12... Nxb2 {[%clk 0:04:33.1]} 13. Rhb1 {[%clk 0:04:14.9]} 13... Nxc4 {[%clk
0:03:39.2]} 14. Nxc4 {[%clk 0:04:07.3]} 14... Nd5 {[%clk 0:03:32.4]} 15. Nfe5
{[%clk 0:04:01.3]} 15... Bf6 {[%clk 0:03:28.7]} 16. f4 {[%clk 0:03:58.9]} 16...
b5 {[%clk 0:03:18.8]} 17. Na5 {[%clk 0:03:55.5]} 17... Bxe5 {[%clk 0:03:13]} 18.
fxe5 {[%clk 0:03:55.4]} 18... Bd7 {[%clk 0:03:05]} 19. Rc1 {[%clk 0:03:50.2]}
19... Rfc8 {[%clk 0:02:56.7]} 20. Nc6 {[%clk 0:03:45.2]} 20... Bxc6 {[%clk
0:02:19.4]} 21. Rxc6 {[%clk 0:03:45.1]} 21... a5 {[%clk 0:02:10.7]} 22. Bxd5
{[%clk 0:03:41]} 22... exd5 {[%clk 0:02:09.6]} 23. Rac1 {[%clk 0:03:40.5]} 23...
Ra7 {[%clk 0:02:03.9]} 24. R6c5 {[%clk 0:03:38]} 24... a4 {[%clk 0:02:01.4]} 25.
bxa4 {[%clk 0:03:29.3]} 25... bxa4 {[%clk 0:02:00]} 26. Rxd5 {[%clk 0:03:28]}
26... a3 {[%clk 0:01:55.8]} 27. Ra1 {[%clk 0:03:23.6]} 27... c5 {[%clk
0:01:46.6]} 28. Kd3 {[%clk 0:03:19.3]} 28... a2 {[%clk 0:01:40.6]} 29. Kc2
{[%clk 0:03:16.2]} 29... c4 {[%clk 0:01:31.3]} 30. Rb5 {[%clk 0:03:11.2]} 30...
Ra3 {[%clk 0:01:19.3]} 31. Rb2 {[%clk 0:03:05.4]} 31... c3 {[%clk 0:01:01.6]}
32. Rbxa2 {[%clk 0:03:01.4]} 32... cxd2+ {[%clk 0:01:00.6]} 33. Kxd2 {[%clk
0:03:00.6]} 33... Rxa2+ {[%clk 0:00:59.3]} 34. Rxa2 {[%clk 0:02:59.5]} 34... g6
{[%clk 0:00:58.1]} 35. Kd3 {[%clk 0:02:58]} 35... Rc7 {[%clk 0:00:57.1]} 36. Ke4
{[%clk 0:02:56.9]} 36... Kg7 {[%clk 0:00:56.6]} 37. Kf4 {[%clk 0:02:54.6]} 37...
Re7 {[%clk 0:00:53.6]} 38. g4 {[%clk 0:02:51.5]} 38... Rc7 {[%clk 0:00:52.8]}
39. h4 {[%clk 0:02:34.4]} 39... Rc4+ {[%clk 0:00:51.9]} 40. e4 {[%clk
0:02:33.7]} 40... Rc6 {[%clk 0:00:50.8]} 41. Ra7 {[%clk 0:02:29.6]} 41... Re6
{[%clk 0:00:50.1]} 42. Rd7 {[%clk 0:02:25.8]} 42... Rb6 {[%clk 0:00:49.1]} 43.
h5 {[%clk 0:02:13.5]} 43... h6 {[%clk 0:00:45.8]} 44. hxg6 {[%clk 0:02:09.7]}
44... Rxg6 {[%clk 0:00:38.9]} 45. Rd6 {[%clk 0:02:06.8]} 45... Rg5 {[%clk
0:00:38.2]} 46. Rf6 {[%clk 0:02:04.7]} 46... h5 {[%clk 0:00:37]} 47. Kxg5 {[%clk
0:02:03.1]} 1-0

[Event "Live Chess"]
[Site "Chess.com"]
[Date "2024.06.02"]
[Round "-"]
[White "blunderabit"]
[Black "MagnersCarlsberg2870"]
[Result "1/2-1/2"]
[WhiteElo "1774"]
[BlackElo "1804"]
[TimeControl "300"]
[EndTime "1:54:51 PDT"]
[Termination "Game drawn by repetition"]

1. e4 {[%clk 0:04:57.4]} 1... e5 {[%clk 0:04:57.4]} 2. Nf3 {[%clk 0:04:53.4]}
2... Nf6 {[%clk 0:04:56.1]} 3. d4 {[%clk 0:04:50.6]} 3... exd4 {[%clk
0:04:51.5]} 4. e5 {[%clk 0:04:41.7]} 4... Bb4+ {[%clk 0:04:49.8]} 5. Bd2 {[%clk
0:04:38.1]} 5... Nd5 {[%clk 0:04:44.9]} 6. Bc4 {[%clk 0:04:31.6]} 6... Bxd2+
{[%clk 0:04:42.2]} 7. Qxd2 {[%clk 0:04:29.8]} 7... Nb6 {[%clk 0:04:41.4]} 8. Bb3
{[%clk 0:04:20.7]} 8... O-O {[%clk 0:04:36.6]} 9. Qxd4 {[%clk 0:04:17]} 9... Nc6
{[%clk 0:04:35.4]} 10. Qf4 {[%clk 0:04:14.4]} 10... d6 {[%clk 0:04:31.5]} 11.
O-O {[%clk 0:04:05.8]} 11... dxe5 {[%clk 0:04:30]} 12. Nxe5 {[%clk 0:04:04.1]}
12... Nxe5 {[%clk 0:04:29.2]} 13. Qxe5 {[%clk 0:04:03.1]} 13... Re8 {[%clk
0:04:27.9]} 14. Qf4 {[%clk 0:03:59.7]} 14... Be6 {[%clk 0:04:24.5]} 15. Nc3
{[%clk 0:03:56.9]} 15... Bxb3 {[%clk 0:04:22.7]} 16. axb3 {[%clk 0:03:55]} 16...
Qe7 {[%clk 0:04:12.7]} 17. Nb5 {[%clk 0:03:47.5]} 17... Nd5 {[%clk 0:04:05.6]}
18. Qd4 {[%clk 0:03:41.9]} 18... c6 {[%clk 0:04:02.1]} 19. c4 {[%clk 0:03:08]}
19... cxb5 {[%clk 0:03:54.5]} 20. cxd5 {[%clk 0:03:01.7]} 20... Rad8 {[%clk
0:03:53.4]} 21. Rxa7 {[%clk 0:02:57.1]} 21... Qg5 {[%clk 0:03:51.9]} 22. d6
{[%clk 0:02:43]} 22... Re2 {[%clk 0:03:47.4]} 23. h4 {[%clk 0:02:17.9]} 23...
Qh6 {[%clk 0:03:42.4]} 24. d7 {[%clk 0:02:13.8]} 24... Rd2 {[%clk 0:03:41.2]}
25. Qe4 {[%clk 0:01:56.4]} 25... R2xd7 {[%clk 0:03:37.3]} 26. Rxb7 {[%clk
0:01:52.1]} 26... Rxb7 {[%clk 0:03:35.8]} 27. Qxb7 {[%clk 0:01:50.7]} 27... Qxh4
{[%clk 0:03:34.7]} 28. Qxb5 {[%clk 0:01:46.5]} 28... g6 {[%clk 0:03:29.8]} 29.
Re1 {[%clk 0:01:39.9]} 29... Rd2 {[%clk 0:03:22.2]} 30. Re8+ {[%clk 0:01:37.7]}
30... Kg7 {[%clk 0:03:20.9]} 31. Qe5+ {[%clk 0:01:36.3]} 31... Kh6 {[%clk
0:03:07]} 32. Qe3+ {[%clk 0:01:27.7]} 32... Qg5 {[%clk 0:03:05.5]} 33. Qh3+
{[%clk 0:01:22.8]} 33... Kg7 {[%clk 0:03:01.6]} 34. Qc3+ {[%clk 0:01:20]} 34...
Kh6 {[%clk 0:02:59.6]} 35. Qh3+ {[%clk 0:01:15.8]} 35... Kg7 {[%clk 0:02:57.7]}
36. Qc3+ {[%clk 0:01:15]} 36... Kh6 {[%clk 0:02:56.3]} 37. Qh3+ {[%clk
0:01:14.5]} 1/2-1/2